fUSD/lending_fUSD_20260228
["ID","MTS","AMOUNT","RATE_DAILY","PERIOD"]
[406926572,1772281842476,-1818541.31834205,0.00018,2]
[406926574,1772281844802,-500.0,0.00017742,2]
[406926575,1772281844811,-37.25756226,0.00017742,2]
[406926591,1772281845409,-118.84731922,0.00017742,2]
[406926592,1772281845419,-2857.10870217,0.000179,2]
[406926593,1772281845428,-1295.95061106,0.00018,2]
[406926594,1772281845439,-3485.46896162,0.00018,2]
[406926624,1772282389188,300.0,8.284e-05,3]
[406926731,1772282762842,300.0,8.284e-05,3]
[406926735,1772283031502,-897.6569597,7.77e-05,2]
[406926736,1772283031560,-164.4030403,7.77e-05,2]
[406926737,1772283031569,-286.5969597,8.105e-05,2]
[406926738,1772283031580,-775.4630403,8.105e-05,2]
[406926739,1772283031590,-1062.06,8.44e-05,2]
[406926740,1772283031600,-195.0,8.547e-05,2]
[406926741,1772283031611,-783.42642363,8.774e-05,2]
[406926742,1772283031623,-278.63357637,8.774e-05,2]
[406926743,1772283031632,-1062.06,9.109e-05,2]
[406926744,1772283031641,-559.30642363,9.443e-05,2]
[406926745,1772283031653,-454.55387908,9.443e-05,2]
[406926746,1772283031664,-48.19969729,9.443e-05,2]
[406926747,1772283031673,-1062.06,9.778e-05,2]
[406926748,1772283031683,-1200.0,0.00010112,2]
[406926749,1772283031692,-44.16748788,0.00010113,2]
[406926750,1772283031859,-751.72228898,0.00010113,2]
[406926751,1772283031880,-266.17022314,0.00010113,2]
[406926752,1772283031890,-250.0,0.00010267,2]
[406926753,1772283031899,-1062.06,0.00010447,2]
[406926754,1772283031914,-150.99,0.00010447,2]
[406926755,1772283031923,-150.99,0.00010447,2]
[406926756,1772283031932,-5501.7276351,0.00010447,2]
[406926757,1772283031944,-4498.2623649,0.00010447,2]
[406926758,1772283031954,-1062.06,0.00010782,2]
[406926759,1772283031963,-166.66,0.00010959,2]
[406926760,1772283031972,-1062.06,0.00011116,2]
[406926761,1772283031983,-166.66,0.00011151,2]
[406926762,1772283031992,-166.66,0.00011343,2]
[406926763,1772283032002,-1062.06,0.00011451,2]
[406926764,1772283032011,-1102.27288532,0.00011507,2]
[406926765,1772283032022,-620.84711468,0.00011507,2]
[406926766,1772283032031,-166.66,0.00011535,2]
[406926767,1772283032041,-166.66,0.00011727,2]
[406926768,1772283032050,-1062.06,0.00011786,2]
[406926769,1772283032059,-1000.0,0.00011818,2]
[406926770,1772283032068,-500.0,0.00011833,2]
[406926771,1772283032077,-500.0,0.00011833,2]
[406926772,1772283032087,-500.0,0.00011833,2]
[406926773,1772283032096,-500.0,0.00011833,2]
[406926774,1772283032105,-500.0,0.00011833,2]
[406926775,1772283032115,-500.0,0.00011833,2]
[406926776,1772283032124,-500.0,0.00011833,2]
[406926777,1772283032133,-500.0,0.00011833,2]
[406926778,1772283032143,-500.0,0.00011833,2]
[406926779,1772283032152,-500.0,0.00011833,2]
[406926780,1772283032161,-500.0,0.00011833,2]
[406926781,1772283032170,-500.0,0.00011833,2]
[406926782,1772283032180,-500.0,0.00011833,2]
[406926783,1772283032189,-500.0,0.00011833,2]
[406926784,1772283032199,-500.0,0.00011833,2]
[406926785,1772283032208,-151.0,0.00011833,2]
[406926786,1772283032216,-151.0,0.00011833,2]
[406926787,1772283032225,-151.0,0.00011833,2]
[406926788,1772283032235,-151.0,0.00011833,2]
[406926789,1772283032244,-151.0,0.00011833,2]
[406926790,1772283032253,-151.0,0.00011833,2]
[406926791,1772283032262,-151.0,0.00011833,2]
[406926792,1772283032271,-151.0,0.00011833,2]
[406926793,1772283032280,-151.0,0.00011833,2]
[406926794,1772283032289,-151.0,0.00011833,2]
[406926795,1772283032298,-151.0,0.00011833,2]
[406926796,1772283032307,-151.0,0.00011833,2]
[406926797,1772283032316,-13301.95723746,0.0001184,2]
[406926846,1772283039804,-3496.91276254,0.0001184,2]
[406926847,1772283039814,-1503.08723746,0.00011874,2]
[406926848,1772283039865,-729.0777101,0.00011874,2]
[406926849,1772283040029,-90.25505244,0.00011874,2]
[406926850,1772283040038,-166.66,0.0001192,2]
[406926851,1772283040048,-500.0,0.00012029,2]
[406926852,1772283040058,-1062.06,0.0001212,2]
[406926853,1772283040067,-2322.42,0.00012171,2]
[406926854,1772283040076,-1500.0,0.00012386,2]
[406926855,1772283040086,-1062.06,0.00012455,2]
[406926856,1772283040095,-2322.42,0.00012467,2]
[406926857,1772283040105,-2322.42,0.00012764,2]
[406926858,1772283040115,-1062.06,0.00012789,2]
[406926859,1772283040129,-2322.42,0.00013061,2]
[406926860,1772283040141,-1062.06,0.00013124,2]
[406926861,1772283040152,-1000.0,0.00013295,2]
[406926862,1772283040162,-150.0,0.00013322,2]
[406926863,1772283040171,-1062.06,0.00013459,2]
[406926864,1772283040180,-200.0,0.00013699,2]
[406926865,1772283040190,-4650.83,0.00013699,2]
[406926866,1772283040199,-1062.06,0.00013793,2]
[406926867,1772283040208,-1235.2464,0.00013808,2]
[406926868,1772283040218,-89546.4512,0.00013808,2]
[406926869,1772283040227,-3295.98072017,0.00013808,2]
[406926870,1772283040236,-289.52830744,0.00013908,2]
[406926871,1772283040245,-500.0,0.00013908,2]
[406926872,1772283040255,-500.0,0.00013908,2]
[406926874,1772283040264,-310.22607572,0.00013908,2]
[406926876,1772283040273,-500.0,0.00013908,2]
[406926878,1772283040282,-500.0,0.00013908,2]
[406926880,1772283040291,-500.0,0.00013908,2]
[406926882,1772283040300,-500.0,0.00013908,2]
[406926884,1772283040309,-500.0,0.00013908,2]
[406926886,1772283040318,-276.97407445,0.00013908,2]
[406926888,1772283040327,-500.0,0.00013908,2]
[406926890,1772283040336,-500.0,0.00013908,2]
[406926892,1772283040345,-500.0,0.00013908,2]
[406926894,1772283040354,-500.0,0.00013908,2]
[406926896,1772283040363,-500.0,0.00013908,2]
[406926897,1772283040373,-500.0,0.00013908,2]
[406926899,1772283040382,-500.0,0.00013908,2]
[406926901,1772283040391,-500.0,0.00013908,2]
[406926903,1772283040400,-500.0,0.00013908,2]
[406926905,1772283040409,-500.0,0.00013908,2]
[406926907,1772283040418,-500.0,0.00013908,2]
[406926909,1772283040427,-500.0,0.00013908,2]
[406926911,1772283040436,-500.0,0.00013908,2]
[406926914,1772283040449,-500.0,0.00013908,2]
[406926916,1772283040459,-500.0,0.00013908,2]
[406926918,1772283040468,-500.0,0.00013908,2]
[406926920,1772283040477,-500.0,0.00013908,2]
[406926922,1772283040486,-500.0,0.00013908,2]
[406926924,1772283040496,-500.0,0.00013908,2]
[406926926,1772283040504,-506.55258231,0.00013908,2]
[406926928,1772283040513,-504.49415487,0.00013908,2]
[406926930,1772283040522,-500.0,0.00013908,2]
[406926931,1772283040531,-500.0,0.00013908,2]
[406926934,1772283040541,-500.0,0.00013908,2]
[406926935,1772283040550,-500.0,0.00013908,2]
[406926938,1772283040561,-1717.32674318,0.00014056,2]
[406926941,1772283040585,-5027.80025682,0.00014056,2]
[406926943,1772283040594,-512.0,0.0001411,2]
[406926945,1772283040603,-1062.06,0.00014128,2]
[406926947,1772283040614,-2500.0,0.00014156,2]
[406926949,1772283040624,-2914.07,0.00014243,2]
[406926951,1772283040633,-10000.0,0.00014256,2]
[406926953,1772283040642,-365.07568955,0.00014256,2]
[406926955,1772283040651,-317.53143114,0.00014256,2]
[406926957,1772283040661,-20182.76517966,0.00014256,2]
[406926959,1772283040670,-3295.98072017,0.00014263,2]
[406926961,1772283040679,-10175.40517189,0.00014283,2]
[406926963,1772283040688,-294.50570148,0.00014346,2]
[406926965,1772283040698,-1500000.0,0.00014356,2]
[406926967,1772283040707,-4650.83,0.00014384,2]
[406926969,1772283040716,-1000.0,0.00014456,2]
[406926971,1772283040725,-1000.0,0.00014456,2]
[406926973,1772283040734,-1000.0,0.00014456,2]
[406926975,1772283040743,-1000.0,0.00014456,2]
[406926976,1772283040752,-1000.0,0.00014456,2]
[406926978,1772283040762,-1000.0,0.00014456,2]
[406926981,1772283040771,-1000.0,0.00014456,2]
[406926983,1772283040782,-514.6582369,0.00014456,2]
[406926984,1772283040791,-1000.0,0.00014456,2]
[406926986,1772283040801,-1000.0,0.00014456,2]
[406926988,1772283040812,-1000.0,0.00014456,2]
[406926990,1772283040821,-1008.05702942,0.00014456,2]
[406926992,1772283040830,-593.78241863,0.00014456,2]
[406926994,1772283040839,-1000.0,0.00014456,2]
[406926996,1772283040848,-1000.0,0.00014456,2]
[406926998,1772283040857,-717.87177273,0.00014456,2]
[406927000,1772283040868,-511.98217898,0.00014456,2]
[406927002,1772283040877,-1000.0,0.00014456,2]
[406927004,1772283040886,-1008.78545051,0.00014456,2]
[406927006,1772283040895,-1000.0,0.00014456,2]
[406927008,1772283040904,-1000.0,0.00014456,2]
[406927010,1772283040916,-1000.0,0.00014456,2]
[406927012,1772283040925,-1000.0,0.00014456,2]
[406927014,1772283040934,-1010.16686171,0.00014456,2]
[406927016,1772283040943,-1000.0,0.00014456,2]
[406927018,1772283040952,-1000.0,0.00014456,2]
[406927020,1772283040963,-1000.0,0.00014456,2]
[406927022,1772283040972,-1000.0,0.00014456,2]
[406927024,1772283040983,-1000.0,0.00014456,2]
[406927026,1772283040991,-1000.0,0.00014456,2]
[406927028,1772283041001,-500.0,0.00014517,2]
[406927030,1772283041010,-500.0,0.00014517,2]
[406927032,1772283041019,-500.0,0.00014517,2]
[406927033,1772283041029,-500.0,0.00014517,2]
[406927035,1772283041038,-500.0,0.00014517,2]
[406927037,1772283041046,-500.0,0.00014517,2]
[406927040,1772283041058,-500.0,0.00014517,2]
[406927041,1772283041067,-500.0,0.00014517,2]
[406927044,1772283041076,-500.0,0.00014517,2]
[406927045,1772283041085,-500.0,0.00014517,2]
[406927047,1772283041093,-500.0,0.00014517,2]
[406927049,1772283041102,-446.84331536,0.00014517,2]
[406927051,1772283041111,-500.0,0.00014517,2]
[406927053,1772283041121,-500.0,0.00014517,2]
[406927055,1772283041130,-668.65185757,0.00014517,2]
[406927057,1772283041139,-693.3919763,0.00014572,2]
[406927059,1772283041149,-719.04747942,0.00014627,2]
[406927061,1772283041158,-151.0,0.00014634,2]
[406927063,1772283041167,-20182.76517958,0.00014661,2]
[406927065,1772283041176,-745.65223616,0.00014682,2]
[406927067,1772283041186,-3295.98072017,0.00014717,2]
[406927069,1772283041195,-773.2413689,0.00014737,2]
[406927071,1772283041204,-1000.0,0.00014773,2]
[406927073,1772283041213,-801.85129955,0.00014792,2]
[406927075,1772283041222,-831.51979763,0.00014847,2]
[406927077,1772283041232,-365.0756895,0.00014863,2]
[406927079,1772283041241,-862.28603014,0.00014902,2]
[406927081,1772283041250,-894.19061326,0.00014957,2]
[406927083,1772283041260,-250.0,0.00015,2]
[406927084,1772283041269,-1515.31004766,0.00015004,2]
[406927086,1772283041278,-1500.0,0.00015004,2]
[406927088,1772283041287,-1500.0,0.00015004,2]
[406927089,1772283041296,-1000.0,0.00015004,2]
[406927091,1772283041305,-1519.35272173,0.00015004,2]
[406927093,1772283041314,-1500.0,0.00015004,2]
[406927095,1772283041323,-218.82282533,0.00015004,2]
[406927097,1772283041332,-1500.0,0.00015004,2]
[406927099,1772283041341,-206.92723051,0.00015004,2]
[406927101,1772283041350,-1618.86499239,0.00015004,2]
[406927103,1772283041359,-1500.0,0.00015004,2]
[406927105,1772283041369,-541.26009197,0.00015004,2]
[406927107,1772283041379,-1500.0,0.00015004,2]
[406927109,1772283041387,-1500.0,0.00015004,2]
[406927111,1772283041396,-1500.0,0.00015004,2]
[406927113,1772283041406,-1203.36470484,0.00015004,2]
[406927114,1772283041415,-1509.53925467,0.00015004,2]
[406927116,1772283041424,-1500.0,0.00015004,2]
[406927118,1772283041433,-10175.40517186,0.00015006,2]
[406927120,1772283041443,-927.27566595,0.00015012,2]
[406927122,1772283041452,-20182.76517958,0.00015066,2]
[406927124,1772283041461,-961.58486559,0.00015067,2]
[406927126,1772283041470,-4650.83,0.00015068,2]
[406927128,1772283041479,-2587.0,0.000151,2]
[406927130,1772283041488,-997.16350561,0.00015122,2]
[406927132,1772283041497,-3295.98072017,0.00015172,2]
[406927134,1772283041506,-1000.0,0.0001535,2]
[406927136,1772283041515,-32888.5933,0.0001535,2]
[406927138,1772283041524,-500.0,0.00015351,2]
[406927140,1772283041533,-500.0,0.00015351,2]
[406927141,1772283041542,-500.0,0.00015351,2]
[406927143,1772283041552,-500.0,0.00015351,2]
[406927145,1772283041562,-500.0,0.00015351,2]
[406927147,1772283041571,-1042.181552,0.00015364,7]
[406927149,1772283041581,-2705.337662,0.00015364,7]
[406927151,1772283041590,-500.0,0.00015451,2]
[406927153,1772283041599,-500.0,0.00015451,2]
[406927155,1772283041608,-508.21782231,0.00015451,2]
[406927157,1772283041618,-500.0,0.00015451,2]
[406927159,1772283041627,-195.98442162,0.00015451,2]
[406927161,1772283041636,-573.95,0.00015451,2]
[406927163,1772283041645,-365.0756895,0.00015471,2]
[406927165,1772283041654,-20182.76517958,0.00015471,2]
[406927167,1772283041664,-432.25528949,0.00015552,2]
[406927168,1772283041674,-2000.0,0.00015552,2]
[406927169,1772283041684,-2000.0,0.00015552,2]
[406927170,1772283041693,-2001.57340438,0.00015552,2]
[406927171,1772283041702,-2000.0,0.00015552,2]
[406927172,1772283041712,-2000.0,0.00015552,2]
[406927173,1772283041721,-2000.0,0.00015552,2]
[406927174,1772283041731,-2000.0,0.00015552,2]
[406927175,1772283041740,-2000.0,0.00015552,2]
[406927176,1772283041753,-3295.98072017,0.00015627,2]
[406927177,1772283041763,-10175.40517186,0.0001573,2]
[406927178,1772283041772,-4650.83,0.00015753,2]
[406927179,1772283041782,-20182.76517958,0.00015876,2]
[406927180,1772283041791,-16382.0,0.00015933,2]
[406927181,1772283041800,-365.0756895,0.00016078,2]
[406927182,1772283041809,-317.53143114,0.00016078,2]
[406927183,1772283041819,-3295.98072017,0.00016081,2]
[406927184,1772283041828,-712.37829793,0.00016099,2]
[406927185,1772283041838,-2500.0,0.00016099,2]
[406927186,1772283041847,-779.13777388,0.00016099,2]
[406927187,1772283041856,-550.78546123,0.00016099,2]
[406927188,1772283041866,-532.89246011,0.00016099,2]
[406927189,1772283041875,-2490.28139264,0.00016099,2]
[406927190,1772283041884,-2500.0,0.00016099,2]
[406927191,1772283041893,-174.04581251,0.00016111,2]
[406927192,1772283041903,-160.0,0.00016111,2]
[406927193,1772283041916,-9999.99,0.00016116,2]
[406927194,1772283041925,-1000.0,0.0001625,2]
[406927195,1772283041934,-20182.76517958,0.0001628,2]
[406927196,1772283041944,-1378.0,0.00016438,2]
[406927197,1772283041955,-266.81662109,0.00016438,2]
[406927198,1772283041964,-228.15,0.00016438,2]
[406927199,1772283041974,-4650.83,0.00016438,2]
[406927200,1772283041984,-10175.40517186,0.00016453,2]
[406927201,1772283041996,-1378.0,0.00016493,2]
[406927202,1772283042009,-3295.98072017,0.00016536,2]
[406927203,1772283042019,-1378.0,0.00016548,2]
[406927204,1772283042028,-1378.0,0.00016602,2]
[406927205,1772283042037,-798.53948142,0.00016647,2]
[406927206,1772283042047,-3000.0,0.00016647,2]
[406927207,1772283042056,-1378.0,0.00016657,2]
[406927208,1772283042066,-365.0756895,0.00016685,2]
[406927209,1772283042075,-20182.76517958,0.00016685,2]
[406927210,1772283042085,-1378.0,0.00016712,2]
[406927211,1772283042095,-167.1,0.00016712,2]
[406927212,1772283042104,-308.99,0.00016754,2]
[406927213,1772283042113,-1378.0,0.00016767,2]
[406927214,1772283042123,-2000.0,0.0001681,2]
[406927215,1772283042132,-1378.0,0.00016822,2]
[406927216,1772283042142,-372.998721,0.00016832,2]
[406927217,1772283042151,-1378.0,0.00016876,2]
[406927218,1772283042161,-2000.0,0.0001691,2]
[406927219,1772283042172,-168.0,0.00016918,2]
[406927220,1772283042181,-1378.0,0.00016931,2]
[406927221,1772283042190,-1378.0,0.00016986,2]
[406927222,1772283042199,-3295.98072017,0.00016991,2]
[406927223,1772283042209,-168.0,0.00016998,2]
[406927224,1772283042219,-2000.0,0.0001701,2]
[406927225,1772283042351,-1378.0,0.00017041,2]
[406927226,1772283042360,-20182.76517958,0.0001709,2]
[406927227,1772283042369,-1378.0,0.00017096,2]
[406927228,1772283042379,-1500.0,0.0001711,2]
[406927229,1772283042388,-171.1192,0.0001711,2]
[406927230,1772283042397,-171.1192,0.0001711,2]
[406927231,1772283042406,-1500.0,0.0001711,2]
[406927232,1772283042416,-171.1192,0.0001711,2]
[406927233,1772283042426,-171.1192,0.0001711,2]
[406927234,1772283042435,-171.1192,0.0001711,2]
[406927235,1772283042444,-171.1192,0.0001711,2]
[406927236,1772283042453,-2632.101218,0.0001711,2]
[406927237,1772283042462,-168.0,0.00017121,2]
[406927238,1772283042471,-168.0,0.00017142,2]
[406927239,1772283042480,-168.0,0.00017145,2]
[406927240,1772283042490,-1378.0,0.0001715,2]
[406927241,1772283042500,-10175.40517186,0.00017177,2]
[406927242,1772283042509,-168.0,0.00017195,2]
[406927243,1772283042518,-3500.0,0.00017195,2]
[406927244,1772283042528,-1378.0,0.00017205,2]
[406927245,1772283042537,-168.0,0.00017225,2]
[406927246,1772283042547,-1378.0,0.0001726,2]
[406927247,1772283042556,-365.0756895,0.00017293,2]
[406927248,1772283042565,-1378.0,0.00017315,2]
[406927249,1772283042574,-168.0,0.00017321,2]
[406927250,1772283042583,-1378.0,0.0001737,2]
[406927251,1772283042593,-1378.0,0.00017424,2]
[406927252,1772283042602,-3295.98072017,0.00017445,2]
[406927253,1772283042612,-1378.0,0.00017479,2]
[406927254,1772283042621,-20182.76517958,0.00017495,2]
[406927255,1772283042631,-1378.0,0.00017534,2]
[406927256,1772283042640,-168.0,0.00017548,2]
[406927257,1772283042649,-1378.0,0.00017589,2]
[406927258,1772283042659,-1378.0,0.00017643,2]
[406927259,1772283042668,-860.361,0.00017645,2]
[406927260,1772283042677,-1401.69339842,0.00017698,2]
[406927261,1772283042687,-1000.0,0.00017727,2]
[406927262,1772283042696,-1000.0,0.00017743,2]
[406927263,1772283042706,-500.0,0.00017808,2]
[406927264,1772283042715,-800.0,0.00017808,2]
[406927265,1772283042724,-14940.76909115,0.0001783,2]
[406927266,1772283042734,-733.851,0.00017845,2]
[406927267,1772283042743,-500.0,0.00017863,2]
[406927268,1772283042752,-1166.18413295,0.000179,2]
[406927269,1772283042761,-365.0756895,0.000179,2]
[406927270,1772283042770,-317.53143114,0.000179,2]
[406927271,1772283042780,-20182.76517958,0.000179,2]
[406927272,1772283042789,-3295.98072017,0.000179,2]
[406927273,1772283042800,-3069.70499177,0.000179,2]
[406927274,1772283042810,-16687.71158202,0.000179,2]
[406927275,1772283042819,-558.04766754,0.000179,2]
[406927276,1772283042828,-10175.40517186,0.000179,2]
[406927277,1772283042837,-81676.5461435,0.00017911,2]
[406927278,1772283042847,-22290.9366082,0.00017911,2]
[406927279,1772283042856,-500.0,0.00017918,2]
[406927280,1772283042865,-1103.10523708,0.00017952,3]
[406927281,1772283042875,-500.0,0.00017972,2]
[406927282,1772283042884,-150.0,0.00017973,2]
[406927283,1772283042894,-150.0,0.00017973,2]
[406927284,1772283042903,-168.0,0.0001798,2]
[406927285,1772283042916,-300.0,0.00017999,2]
[406927286,1772283042926,-300.0,0.00017999,2]
[406927287,1772283042935,-292.6907697,0.00017999,2]
[406927288,1772283042945,-195.66587194,0.00017999,2]
[406927289,1772283042956,-1015.21,0.00018,3]
[406927290,1772283042965,-134553.53814684,0.00018,2]
[406927291,1772283042975,-3948937.79207814,0.00018,2]
[406927292,1772283042985,-362.0,0.00018,30]
[406927293,1772283042995,-323074.49575459,0.00018,2]
[406927296,1772283045535,-3364.725,0.00011774,2]
[406927297,1772283045548,-2156.8386,0.00011774,2]
[406927298,1772283045557,-3512.37434814,0.00014284,2]
[406927299,1772283045566,-5714.21740436,0.000179,2]
[406927300,1772283045576,-8130.17222089,0.00018,2]
[406927301,1772283045682,-40.14922353,0.00018,2]
[406927312,1772283046034,-1832.67330149,0.00018,2]
[406927315,1772283046045,-384.996,0.00018,2]
[406927336,1772284150120,-200.0,0.00013067,2]
[406927337,1772284150143,-500.0,0.00013147,2]
[406927338,1772284150165,-4745.55767,0.00013227,2]
[406927350,1772284231798,-640.56,0.00013227,2]
[406927351,1772284231910,-1868.81683756,0.00013227,2]
[406927355,1772284237831,-689.32767154,0.00013227,2]
[406927538,1772284240040,-3190.40418412,0.00013227,2]
[406927558,1772284240259,-1736.18363678,0.00013227,2]
[406927559,1772284240269,-386.13931337,0.00013296,2]
[406927560,1772284240280,-1019.164,0.00013336,2]
[406927561,1772284240288,-500.0,0.0001334,2]
[406927562,1772284240297,-3240.0,0.00013425,2]
[406927563,1772284240306,-5027.8003,0.00013508,2]
[406927564,1772284240317,-53681.58149766,0.00013508,2]
[406927565,1772284240328,-4173.48057292,0.00013508,2]
[406927566,1772284240481,-31691.38912942,0.00013508,2]
[406927567,1772284240492,-2500.0,0.00013508,2]
[406927568,1772284240501,-453.00544138,0.00013508,2]
[406927569,1772284240510,-3625.57879225,0.00013508,2]
[406927570,1772284240520,-317.53143114,0.00013508,2]
[406927571,1772284240529,-20182.76517966,0.00013508,2]
[406927573,1772284240538,-3658.72327924,0.00013578,2]
[406927574,1772284240547,-163.6142786,0.00013598,2]
[406927575,1772284240556,-500.0,0.000136,2]
[406927576,1772284240566,-500.0,0.000136,2]
[406927577,1772284240575,-500.0,0.000136,2]
[406927578,1772284240584,-500.0,0.000136,2]
[406927579,1772284240593,-500.0,0.000136,2]
[406927580,1772284240602,-500.0,0.000136,2]
[406927581,1772284240612,-500.0,0.000136,2]
[406927582,1772284240621,-500.0,0.000136,2]
[406927583,1772284240630,-500.0,0.000136,2]
[406927584,1772284240643,-500.0,0.000136,2]
[406927585,1772284240652,-500.0,0.000136,2]
[406927586,1772284240662,-500.0,0.000136,2]
[406927587,1772284240671,-151.0,0.000136,2]
[406927588,1772284240681,-151.0,0.000136,2]
[406927589,1772284240691,-151.0,0.000136,2]
[406927590,1772284240700,-151.0,0.000136,2]
[406927591,1772284240709,-151.0,0.000136,2]
[406927592,1772284240718,-151.0,0.000136,2]
[406927593,1772284240727,-151.0,0.000136,2]
[406927594,1772284240736,-151.0,0.000136,2]
[406927595,1772284240746,-151.0,0.000136,2]
[406927596,1772284240755,-151.0,0.000136,2]
[406927597,1772284240763,-151.0,0.000136,2]
[406927598,1772284240772,-151.0,0.000136,2]
[406927599,1772284240782,-351.23209314,0.00013607,2]
[406927600,1772284240791,-398.93150477,0.00013607,2]
[406927601,1772284240799,-500.0,0.00013607,2]
[406927602,1772284240808,-302.2521,0.00013607,2]
[406927603,1772284240817,-299.99,0.00013607,2]
[406927604,1772284240826,-150.99,0.00013607,2]
[406927605,1772284240835,-150.99,0.00013607,2]
[406927606,1772284240844,-348.57,0.00013607,2]
[406927607,1772284240853,-1543.68,0.00013607,2]
[406927608,1772284240862,-4568.2,0.00013607,2]
[406927609,1772284240871,-9999.99,0.00013607,2]
[406927610,1772284240880,-350.01,0.00013607,2]
[406927611,1772284240890,-2987.78,0.00013607,2]
[406927612,1772284240899,-500.0,0.00013607,2]
[406927613,1772284240908,-500.0,0.00013607,2]
[406927614,1772284240917,-500.0,0.00013607,2]
[406927615,1772284240926,-500.0,0.00013607,2]
[406927616,1772284240935,-500.0,0.00013607,2]
[406927617,1772284240945,-500.0,0.00013607,2]
[406927618,1772284240954,-500.0,0.00013607,2]
[406927619,1772284240964,-500.0,0.00013607,2]
[406927620,1772284240983,-500.0,0.00013607,2]
[406927621,1772284241004,-500.0,0.00013607,2]
[406927622,1772284241016,-500.0,0.00013607,2]
[406927623,1772284241025,-500.0,0.00013607,2]
[406927624,1772284241036,-500.0,0.00013607,2]
[406927625,1772284241047,-500.0,0.00013607,2]
[406927626,1772284241061,-500.0,0.00013607,2]
[406927627,1772284241072,-500.0,0.00013607,2]
[406927628,1772284241081,-500.0,0.00013607,2]
[406927629,1772284241092,-500.0,0.00013607,2]
[406927630,1772284241103,-500.0,0.00013607,2]
[406927631,1772284241113,-500.0,0.00013607,2]
[406927632,1772284241124,-500.0,0.00013607,2]
[406927633,1772284241136,-500.0,0.00013607,2]
[406927634,1772284241145,-500.0,0.00013607,2]
[406927635,1772284241155,-500.0,0.00013607,2]
[406927636,1772284241164,-500.0,0.00013607,2]
[406927637,1772284241173,-500.0,0.00013607,2]
[406927638,1772284241182,-500.0,0.00013607,2]
[406927639,1772284241191,-500.0,0.00013607,2]
[406927640,1772284241200,-500.0,0.00013607,2]
[406927641,1772284241209,-500.0,0.00013607,2]
[406927642,1772284241218,-500.0,0.00013607,2]
[406927643,1772284241227,-500.0,0.00013607,2]
[406927644,1772284241237,-500.0,0.00013607,2]
[406927645,1772284241247,-500.0,0.00013607,2]
[406927646,1772284241257,-500.0,0.00013607,2]
[406927647,1772284241266,-500.0,0.00013607,2]
[406927648,1772284241276,-500.0,0.00013607,2]
[406927649,1772284241293,-500.0,0.00013607,2]
[406927650,1772284241308,-500.0,0.00013607,2]
[406927651,1772284241327,-245.51888222,0.00013607,2]
[406927652,1772284241340,-500.0,0.00013607,2]
[406927653,1772284241350,-500.0,0.00013607,2]
[406927654,1772284241360,-500.0,0.00013607,2]
[406927655,1772284241370,-500.0,0.00013607,2]
[406927656,1772284241380,-500.0,0.00013607,2]
[406927657,1772284241390,-500.0,0.00013607,2]
[406927658,1772284241401,-500.0,0.00013607,2]
[406927659,1772284241411,-500.0,0.00013607,2]
[406927660,1772284241422,-500.0,0.00013607,2]
[406927661,1772284241432,-500.0,0.00013607,2]
[406927662,1772284241443,-500.0,0.00013607,2]
[406927663,1772284241453,-500.0,0.00013607,2]
[406927664,1772284241464,-500.0,0.00013607,2]
[406927665,1772284241474,-500.0,0.00013607,2]
[406927666,1772284241485,-500.0,0.00013607,2]
[406927667,1772284241496,-500.0,0.00013607,2]
[406927668,1772284241507,-500.0,0.00013607,2]